Cogmind - Beta 10.2 @@@ ROGUE MODE // 2021.07.10 @ 23:08:54 Player: CreepyD Result: Destroyed by as-36373 with Assembled Heavy Rifle Performance ------------- Evolutions (0) 0 Regions Visited (2) 400 Robots Destroyed (4) 20 Value Destroyed (134) 134 Prototype IDs (0) 0 Alien Tech Used (0) 0 Bonus (0) 0 TOTAL SCORE: 554 Bonus ------- None Cogmind --------- Core Integrity 0/250 Matter 300/300 Energy 99/100 System Corruption 1% Temperature Cool (20) Movement Rolling (100) Location -10/Mines Parts ------- > --- POWER (1) -------- (None) > --- PROPULSION (2) --- Compact Wheel > --- UTILITY (2) ------ Propulsion Shielding > --- WEAPON (2) ------- (None) > --- INVENTORY (4) ---- Small Storage Unit Peak State ------------ > --- POWER ------------ Ion Engine > --- PROPULSION ------- Compact Wheel Compact Wheel > --- UTILITY ---------- Small Storage Unit Propulsion Shielding > --- WEAPON ----------- Light Assault Rifle Light Assault Rifle > --- INVENTORY -------- Light Ion Engine [Rating: 7] Favorites ----------- Power Light Ion Engine Engine Light Ion Engine Propulsion Compact Wheel Wheel Compact Wheel Utility Propulsion Shielding Device Structural Scanner Storage Small Storage Unit Processor Targeting Computer Protection Propulsion Shielding Weapon Light Assault Rifle Energy Gun Small Laser Ballistic Gun Light Assault Rifle Build | -11 -10 -10 ------- Run | Scr Mat Min Slots Evolved . | . . . Power . | . . . Propulsion . | . . . Utility . | . . . Weapon . | . . . Parts Attached 11 | 6 4 1 Power 2 | 1 1 . Engine 2 | 1 1 . Core . | . . . Reactor . | . . . Propulsion 2 | 2 . . Treads . | . . . Leg . | . . . Wheel 2 | 2 . . Hover . | . . . Flight . | . . . Utility 4 | 1 2 1 Device 1 | . . 1 Storage 1 | 1 . . Processor 1 | . 1 . Hackware . | . . . Protection 1 | . 1 . Artifact . | . . . Weapon 3 | 2 1 . Energy Gun 1 | . 1 . Energy Cannon . | . . . Ballistic Gun 2 | 2 . . Ballistic Cannon . | . . . Launcher . | . . . Special Weapon . | . . . Impact Weapon . | . . . Slashing Weapon . | . . . Piercing Weapon . | . . . Special Melee Weapon . | . . . Unidentified Prototypes . | . . . Parts Lost 8 | . 3 5 Power 2 | . 1 1 Propulsion 1 | . . 1 Utility 2 | . . 2 Weapon 3 | . 2 1 Highest Loss Streak 5 | . 2 5 Average Slot Usage (%) 89 | . 93 84 Engine 14 | . 14 14 Wheel 28 | . 28 28 Storage 3 | . 5 . Processor 10 | . 8 13 Protection 12 | . 11 14 Energy Gun 3 | . 5 . Ballistic Gun 16 | . 18 14 Naked Turns . | . . . Heaviest Build 12 | 11 12 6 Greatest Support 32 | 32 32 32 Greatest Overweight (x) . | . . . Average Overweight (x) . | . . . Largest Inventory Capacity 6 | 6 6 4 Average Capacity 4 | 4 4 4 Most Carried 4 | 4 2 2 Average Carried 1 | 1 . 1 Final Capacity 6 | 6 4 4 Final Carried 1 | 1 1 1 Class Distribution -------------------- 100% | Mutant Dominant Class ---------------- Mutant | -10/Materials Mutant | -10/Mines Resources | -11 -10 -10 ----------- Run | Scr Mat Min Matter Collected 332 | 260 72 . Remotely . | . . . Salvage Created 156 | . 156 . Parts 9 | . 9 . Haulers Intercepted 1 | . 1 . Recyclers Shooed . | . . . Parts Field Recycled . | . . . Retrieved Matter . | . . . Parts Self-Destructed . | . . . Prevented . | . . . Kills | -11 -10 -10 ------- Run | Scr Mat Min Combat Hostiles Destroyed 3 | . 3 . Guns 3 | . 3 . Classes Destroyed 2 | . 2 . Hauler 1 | . 1 . Grunt 3 | . 3 . Best Kill Streak 2 | . 2 . Combat Bots Only 2 | . 2 . Max Kills in Single Turn 1 | . 1 . Gunslinging . | . . . Exploded . | . . . Melee . | . . . Uniques/NPCs Destroyed . | . . . Combat | -11 -10 -10 -------- Run | Scr Mat Min Damage Taken 685 | . 288 397 Core 257 | . 45 212 Absorbed by Shields . | . . . Core Remaining (%) 100 | 100 . . Volleys Fired 31 | . 23 8 Largest 2 | . 2 1 Hottest 60 | . 60 20 Shots Fired 44 | . 36 8 Gun 44 | . 36 8 Cannon . | . . . Launcher . | . . . Special . | . . . Kinetic 40 | . 32 8 Thermal 4 | . 4 . Explosive . | . . . Electromagnetic . | . . . Robot Hit Streak 8 | . 6 8 Robot Miss Streak 2 | . 2 2 Penetration Max . | . . . Secondary Targets . | . . . Shots Hit Robots 30 | . 24 6 Core Hits 10 | . 8 2 Critical Hits 1 | . 1 . Critical Kills 1 | . 1 . Critical Parts Destroyed . | . . . Melee Attacks . | . . . Impact . | . . . Slashing . | . . . Piercing . | . . . Sneak Attacks . | . . . Combat Hostiles . | . . . Follow-up Attacks . | . . . Damage Inflicted 284 | . 230 54 Guns 284 | . 230 54 Cannons . | . . . Explosions . | . . . Melee . | . . . Ramming . | . . . Kinetic 251 | . 197 54 Thermal 33 | . 33 . Explosive . | . . . Electromagnetic . | . . . Impact . | . . . Slashing . | . . . Piercing . | . . . Highest Corruption 1 | . 1 1 Average Corruption 1 | . 1 1 Corruption Purged . | . . . Effects 3 | . 2 1 Energy Discharges 1 | . . 1 Data Loss (minor) 1 | . 1 . Targeting Errors 1 | . 1 . Overload Shots . | . . . Overflow Damage 65 | . 65 . Projectiles . | . . . Explosions 65 | . 65 . Melee . | . . . Knockbacks . | . . . Impact . | . . . Kinetic . | . . . Secondary . | . . . Self-Inflicted Damage 114 | . 114 . Shots 1 | . 1 . Rammed . | . . . Targets Rammed . | . . . Kicked . | . . . Crushed . | . . . Highest Temperature 32 | . 32 15 Average Temperature 13 | . 13 15 Received Heat Transfer 126 | . 66 60 Siege Activations . | . . . Robots Corrupted . | . . . Combat Hostiles . | . . . Parts Fried . | . . . Impact Corruptions . | . . . Robots Melted . | . . . Combat Hostiles . | . . . Parts Melted . | . . . Heat Transferred 75 | . 75 . Parts Sabotaged . | . . . Parts Stolen . | . . . Parts Stripped . | . . . Power Chain Reactions . | . . . Missiles Intercepted . | . . . Alert | -11 -10 -10 ------- Run | Scr Mat Min Peak Influence 107 | . 107 37 Initial 37 | . . 37 Average 45 | . 60 35 Maximum Alert Level . | . . . Low Security (%) 100 | 100 100 100 Level 1 . | . . . Level 2 . | . . . Level 3 . | . . . Level 4 . | . . . Level 5 . | . . . High Security . | . . . Max Security . | . . . Squads Dispatched 1 | . 1 . Investigation 1 | . 1 . Extermination . | . . . Reinforcement . | . . . Assault . | . . . Garrison . | . . . Intercept . | . . . Construction Impeded . | . . . Haulers Reinforced . | . . . Stealth | -11 -10 -10 --------- Run | Scr Mat Min Distress Signals . | . . . Communications Jammed . | . . . Distress Signals . | . . . Times Spotted 25 | . 10 15 Peak Tracking Total 17 | . 3 17 Tactical Retreats . | . . . Traps | -11 -10 -10 ------- Run | Scr Mat Min Traps Triggered . | . . . Indirectly . | . . . Trap Hack Attempts . | . . . Triggered . | . . . Disarmed . | . . . Reprogrammed . | . . . Reused . | . . . Traps Extracted . | . . . Installed . | . . . Triggered . | . . . Machines | -11 -10 -10 ---------- Run | Scr Mat Min Machines Disabled 3 | . 3 . Max in Single Turn 3 | . 3 . Machines Sabotaged . | . . . Garrisons Compromised . | . . . Overloaded Fab Kills . | . . . Fab Network Shutdowns . | . . . Hacking | -11 -10 -10 --------- Run | Scr Mat Min Machines Accessed 5 | . 5 . Terminals 4 | . 4 . Fabricators . | . . . Repair Stations . | . . . Recycling Units 1 | . 1 . Scanalyzers . | . . . Garrison Access . | . . . Total Hacks 10 | . 10 . Successful 6 | . 6 . Failed 4 | . 4 . Catastrophic 2 | . 2 . Database Lockouts . | . . . Manual 6 | . 6 . Terminals 8 | . 8 . Fabricators . | . . . Repair Stations . | . . . Recycling Units 2 | . 2 . Scanalyzers . | . . . Garrison Access . | . . . Terminal Hacks 4 | . 4 . Emergency Access Points 1 | . 1 . Patrol Status 1 | . 1 . Recall Investigation 1 | . 1 . Zone Layout 1 | . 1 . Fabricator Hacks . | . . . Repair Station Hacks . | . . . Recycling Unit Hacks 2 | . 2 . Retrieve Matter 1 | . 1 . Retrieve Components 1 | . 1 . Scanalyzer . | . . . Garrison Access Hacks . | . . . Unauthorized Hacks . | . . . Terminals . | . . . Fabricators . | . . . Repair Stations . | . . . Recycling Units . | . . . Scanalyzers . | . . . Garrison Access . | . . . Data Cores Recovered . | . . . Used . | . . . Hacking Detections 2 | . 2 . Full Trace Events 2 | . 2 . Feedback Events 1 | . 1 . Corruption 1 | . 1 . Feedback Blocked . | . . . Robot Schematics Acquired . | . . . Robots Built . | . . . Matter . | . . . Time . | . . . Total Robot Build Rating . | . . . Part Schematics Acquired . | . . . Parts Built . | . . . Matter . | . . . Time . | . . . Total Part Build Rating . | . . . Parts Repaired . | . . . Time . | . . . Parts Recycled . | . . . Recycled Matter . | . . . Retrieved Matter . | . . . Retrieved Components 3 | . 3 . Parts Scanalyzed . | . . . Part Schematics Acquired . | . . . Parts Damaged . | . . . Bothacking | -11 -10 -10 ------------ Run | Scr Mat Min Used RIF Installer . | . . . Robots Hacked . | . . . Non-combat . | . . . Combat . | . . . Robot Hacks Applied . | . . . Relay Couplers Released . | . . . Robots Rewired . | . . . Allies Hacked . | . . . Hacks Repelled . | . . . Allies | -11 -10 -10 -------- Run | Scr Mat Min Total Allies . | . . . Largest Group . | . . . Highest-Rated Group . | . . . Highest-Rated Ally . | . . . Total Orders . | . . . Ally Attacks . | . . . Total Damage . | . . . Kills . | . . . Allies Corrupted . | . . . Allies Melted . | . . . Intel | -11 -10 -10 ------- Run | Scr Mat Min Robot Analysis Total . | . . . Derelict Logs Recovered 1 | . . 1 Drone Launches . | . . . Drone Recoveries . | . . . Exploration | -11 -10 -10 ------------- Run | Scr Mat Min Turns Passed 497 | 38 261 198 Spaces Moved 390 | 32 178 180 Core 11 | 11 . . Treads . | . . . Legs . | . . . Wheels 379 | 21 178 180 Hover . | . . . Flight . | . . . Fastest Speed 50 | 50 100 100 Average Speed 98 | 82 100 100 Slowest Speed 100 | 100 100 100 Overloaded Moves . | . . . Propulsion Burnouts . | . . . Robots Hopped . | . . . Cave-ins Triggered . | . . . Exploration Rate (%) 31 | 3 36 54 Regions Visited 2 Branch Regions 1 Pre-discovered Areas . | . . . Known Exits Taken . | . . . Unknown Exits Taken 2 | 1 1 . Scrap Searched . | . . . Spaces Dug . | . . . Terrain Destroyed 21 | . 21 . Melee . | . . . Projectile . | . . . AOE 21 | . 21 . Terrain Rammed . | . . . Walls Destroyed . | . . . Machines Disabled . | . . . Actions | -11 -10 -10 --------- Run | Scr Mat Min Total 465 | 43 230 192 Wait 25 | . 23 2 Move 388 | 31 177 180 Hop . | . . . Pick Up 10 | 6 3 1 Fast Attach 1 | 1 . . Attach 9 | 5 3 1 Detach . | . . . Swap 1 | . 1 . Drop . | . . . Fire 31 | . 23 8 Melee . | . . . Ram . | . . . Kick . | . . . Crush . | . . . Escape Stasis . | . . . Rewire . | . . . Trap . | . . . Miscellaneous . | . . . Route ------- -11/Scrapyard -10/Materials -10/Mines History --------- Turn | Location | Event 11 | -11/Scrapyard | Discovered new exit (range 15) 39 | -11/Scrapyard | Entered Materials 295 | -10/Materials | Discovered new exit (range 6) 300 | -10/Materials | Entered Mines 317 | -10/Mines | Build established: Mutant 473 | -10/Mines | Assembled infested the area 497 | -10/Mines | Core integrity fell below 50% 498 | -10/Mines | Destroyed by as-36373 with Assembled Heavy Rifle Last Messages --------------- 00295_ EXIT=FOUND 00298_ Sml. Laser destroyed. LOCATION=UNKNOWN GOAL=ESCAPE 00376_ K-01 Serf collects debris. 00387_ Acquired Structural Scanner. 00389_ K-01 Serf collects debris. 00400_ Acquired derelict log, extracted data. Data stored: Mines entrances (x2). 00406_ K-01 Serf collects debris. 00473_ ALERT: Infestation in the mines, dispatching Demolisher response squad. 00481_ Targeting Computer destroyed. 00483_ System corrupted: Energy discharge (-33). 00485_ U-05 Engineer lays Concrete. 00488_ Structural Scanner destroyed. 00494_ Com. Wheel destroyed. 00494_ Lgt. Assault Rifle destroyed. 00496_ Lgt. Ion Engine destroyed. 00496_ as-87326 destroyed. Map ----- +----------------------------------------------------+ | ???# ##???# #???????? | | ???# ######## ###????# #???????? | | #??# #??????# #??????# #???????? | | #??# #??????# #??????# #???????? | | #??# #??????# #??????# #???????? | | #??# ######## #??????# #???????? | | ##?# #??????# #???????? | | ### ##########??????# #???????? | | #???????????????# #???????? | | #???????????????# #???????? | | #######????????????#### #???????? | | ??????????????????## #???????? | | ????????????????### #???????? | | ????????????????# u##??????? | | ????????? #??????? | | ????????? ## #??????? | | ?????????? ### ##?## #??????? | | ??????????????#####???## #??????? | | ??????????????????????# #??????? | | ??????????????????????# #??????? | | ??????????????????????# #??????? | | ??????????????????????# #??????? | | ?????????????????????## a #??????? | | ????????????????????##a % #??????? | | ???????????????????## #??????? | | #?????????????????## @##?????? | | #?????????????????# #?????? | | #????????????????# a #????? | | #????????????????# #???? | | ?????????????????## a a #???? | | ??????????????????#### a ##???? | | ####?????????????????# aa ##????? | | ##????????????????# a #?????? | | #???????????????? a ?????? | | #???????????????? ?????? | | ##??????????????? ????? | | #???????????????? a # #????? | | ##?????????????? ##aa?###????? | | #??????????????##?# ????????? | | #?????????????????# ????????? | | ##?????????????????? a????????? | | ##??????????????????? ????????? | | ###??????????????????????????????? | | #????????????????????????????????? | | ?????????????????????????????????? | | ?????????????????????????????????? | | ?????????????????????????????????? | | ?????????????????????????????????? | | ?????????????????????????????????? | | ?????????????????????????????????? | +----------------------------------------------------+ Best States ------------- Heat Dissipation 25 Energy Generation 10 Energy Capacity 250 Matter Stores 300 Matter Capacity 300 Sight Range 16 Terrain Scan Density 10 Propulsion Shielding 33 Evasion (%) 50 Targeting Accuracy 5 Item Schematics ----------------- None Robot Schematics ------------------ None Fabricated ------------ Nothing Alien Tech Used ----------------- None Achievements -------------- None Challenges ------------ None Game ------ Seed TransmissionScatterGravjet Manual? 0 Play Time 00:08:28 Cumulative 84.9 hours Start 2021.07.10 @ 23:01:55 End 2021.07.10 @ 23:08:54 Sessions 1 Manual Loads 0 Difficulty Rogue Special Mode None Game No. 82 Rogue 81 Adventurer 1 Explorer 0 Win Type - Total 1 Types 1/0/0/0/0/0/0/0/0 Lore% 36 Gallery% 58 Achievement% 42 Wizard Run 0 Options --------- ASCII 0 Keyboard 0 Movement Mouse Keybinds 0 Fullscreen 2 Font 18/SmallcapsGlow Map View 76x50 Tactical HUD 1 Map Filters NONE Filters NONE Steam X RUN: a14da584-0763-4aaa-95c6-736ea6e78fd3